[Event "Titled Tuesday Blitz August 22 Late 2023"]
[White "Boor, Carl"]
[Black "Bauman_Guy"]
[WhiteFideId "2017008"]
[WhiteElo "2577"]
[BlackElo "2797"]
[Result "0-1"]
[Round "7"]
[TimeControl "180+1"]
[Date "2023.08.22"]
[WhiteClock "0:00:00"]
[BlackClock "0:00:19"]
[Board "43"]

1. d4 {[%clk 0:03:00]}  Nf6 {[%clk 0:03:00]} 2. c4 {[%clk 0:03:00]}  b6 {[%clk 0:03:00]} 3. f3 {[%clk 0:02:59]}  Bb7 {[%clk 0:02:56]} 4. e4 {[%clk 0:02:59]}  e6 {[%clk 0:02:56]} 5. Bd3 {[%clk 0:02:56]}  Bb4+ {[%clk 0:02:54]} 6. Kf1 {[%clk 0:02:53]}  O-O {[%clk 0:02:53]} 7. Ne2 {[%clk 0:02:52]}  Be7 {[%clk 0:02:44]} 8. Nbc3 {[%clk 0:02:44]}  d6 {[%clk 0:02:43]} 9. Be3 {[%clk 0:02:42]}  Nbd7 {[%clk 0:02:44]} 10. g4 {[%clk 0:02:31]}  e5 {[%clk 0:02:43]} 11. d5 {[%clk 0:02:30]}  Nc5 {[%clk 0:02:44]} 12. Ng3 {[%clk 0:02:27]}  Nfd7 {[%clk 0:02:30]} 13. Bc2 {[%clk 0:02:11]}  a5 {[%clk 0:02:29]} 14. Qd2 {[%clk 0:02:09]}  Ba6 {[%clk 0:02:29]} 15. b3 {[%clk 0:02:07]}  a4 {[%clk 0:02:29]} 16. Kg2 {[%clk 0:01:58]}  axb3 {[%clk 0:02:24]} 17. axb3 {[%clk 0:01:58]}  Bb7 {[%clk 0:02:24]} 18. Nf5 {[%clk 0:01:49]}  g6 {[%clk 0:02:20]} 19. Nxe7+ {[%clk 0:01:37]}  Qxe7 {[%clk 0:02:21]} 20. b4 {[%clk 0:01:30]}  Na6 {[%clk 0:02:19]} 21. Ne2 {[%clk 0:01:29]}  Rfb8 {[%clk 0:02:05]} 22. Rhg1 {[%clk 0:01:23]}  Nf8 {[%clk 0:02:01]} 23. Kh1 {[%clk 0:01:21]}  Bc8 {[%clk 0:01:57]} 24. Ng3 {[%clk 0:01:17]}  Bd7 {[%clk 0:01:52]} 25. Bh6 {[%clk 0:00:56]}  b5 {[%clk 0:01:40]} 26. Nf5 {[%clk 0:00:51]}  Bxf5 {[%clk 0:01:35]} 27. cxb5 {[%clk 0:00:42]}  Bc8 {[%clk 0:01:31]} 28. bxa6 {[%clk 0:00:38]}  Bxa6 {[%clk 0:01:31]} 29. Be3 {[%clk 0:00:35]}  Bb5 {[%clk 0:01:28]} 30. Ra5 {[%clk 0:00:30]}  c6 {[%clk 0:01:18]} 31. Rga1 {[%clk 0:00:26]}  Rxa5 {[%clk 0:01:11]} 32. Rxa5 {[%clk 0:00:25]}  cxd5 {[%clk 0:01:06]} 33. Qxd5 {[%clk 0:00:20]}  Be2 {[%clk 0:00:58]} 34. Kg2 {[%clk 0:00:19]}  Qf6 {[%clk 0:00:54]} 35. f4 {[%clk 0:00:14]}  Bxg4 {[%clk 0:00:50]} 36. f5 {[%clk 0:00:10]}  gxf5 {[%clk 0:00:47]} 37. exf5 {[%clk 0:00:10]}  Bxf5 {[%clk 0:00:41]} 38. Bxf5 {[%clk 0:00:08]}  Qxf5 {[%clk 0:00:41]} 39. Qxd6 {[%clk 0:00:09]}  Qe4+ {[%clk 0:00:31]} 40. Kf2 {[%clk 0:00:09]}  Rc8 {[%clk 0:00:29]} 41. Ra2 {[%clk 0:00:05]}  Ne6 {[%clk 0:00:23]} 42. Re2 {[%clk 0:00:01]}  Qh4+ {[%clk 0:00:20]} 43. Kg2 {[%clk 0:00:01]}  Qe4+ {[%clk 0:00:19]} 44. Kf2 {[%clk 0:00:00]}  Rc2 {[%clk 0:00:19]} 0-1


[Site "https://www.chess.com"]

[Event "Titled Tuesday Blitz August 22 Late 2023"]
[White "Gorovets, Andrey"]
[Black "Kashefi, Amir Hosein"]
[WhiteFideId "13504037"]
[BlackFideId "12557935"]
[WhiteElo "2796"]
[BlackElo "2577"]
[Result "1-0"]
[Round "7"]
[TimeControl "180+1"]
[Date "2023.08.22"]
[WhiteClock "0:00:21"]
[BlackClock "0:00:00"]
[Board "44"]

1. d4 {[%clk 0:02:58]}  d5 {[%clk 0:02:51]} 2. c4 {[%clk 0:02:58]}  c6 {[%clk 0:02:52]} 3. Nf3 {[%clk 0:02:57]}  Nf6 {[%clk 0:02:52]} 4. Nc3 {[%clk 0:02:55]}  a6 {[%clk 0:02:52]} 5. g3 {[%clk 0:02:55]}  Bf5 {[%clk 0:02:50]} 6. Bg2 {[%clk 0:02:52]}  e6 {[%clk 0:02:49]} 7. Nh4 {[%clk 0:02:50]}  Bg6 {[%clk 0:02:48]} 8. Nxg6 {[%clk 0:02:49]}  hxg6 {[%clk 0:02:48]} 9. Qd3 {[%clk 0:02:42]}  Nbd7 {[%clk 0:02:47]} 10. O-O {[%clk 0:02:39]}  Be7 {[%clk 0:02:27]} 11. b3 {[%clk 0:02:33]}  O-O {[%clk 0:01:41]} 12. Bb2 {[%clk 0:02:26]}  b5 {[%clk 0:01:36]} 13. Rfd1 {[%clk 0:02:02]}  Qb6 {[%clk 0:01:29]} 14. c5 {[%clk 0:02:01]}  Qc7 {[%clk 0:01:28]} 15. f4 {[%clk 0:02:00]}  a5 {[%clk 0:01:24]} 16. e3 {[%clk 0:01:46]}  Rfe8 {[%clk 0:01:23]} 17. a3 {[%clk 0:01:39]}  Qb7 {[%clk 0:01:22]} 18. b4 {[%clk 0:01:39]}  axb4 {[%clk 0:01:20]} 19. axb4 {[%clk 0:01:40]}  Rxa1 {[%clk 0:01:19]} 20. Rxa1 {[%clk 0:01:40]}  Ra8 {[%clk 0:01:20]} 21. Qb1 {[%clk 0:01:39]}  Ra6 {[%clk 0:01:11]} 22. Bf3 {[%clk 0:01:35]}  Qa8 {[%clk 0:01:08]} 23. g4 {[%clk 0:01:27]}  Rxa1 {[%clk 0:01:00]} 24. Qxa1 {[%clk 0:01:28]}  Qxa1+ {[%clk 0:00:59]} 25. Bxa1 {[%clk 0:01:29]}  Ne8 {[%clk 0:00:54]} 26. g5 {[%clk 0:01:28]}  f5 {[%clk 0:00:54]} 27. Be2 {[%clk 0:01:22]}  Nc7 {[%clk 0:00:50]} 28. Nb1 {[%clk 0:01:22]}  Kf7 {[%clk 0:00:47]} 29. Nd2 {[%clk 0:01:21]}  Nb8 {[%clk 0:00:47]} 30. Bc3 {[%clk 0:01:20]}  Kg8 {[%clk 0:00:38]} 31. Kg2 {[%clk 0:01:19]}  Bd8 {[%clk 0:00:37]} 32. Nb3 {[%clk 0:01:19]}  Ne8 {[%clk 0:00:35]} 33. Nd2 {[%clk 0:01:19]}  Bc7 {[%clk 0:00:35]} 34. Nb1 {[%clk 0:01:18]}  Na6 {[%clk 0:00:33]} 35. Na3 {[%clk 0:01:17]}  Bb8 {[%clk 0:00:31]} 36. Nxb5 {[%clk 0:01:15]}  cxb5 {[%clk 0:00:31]} 37. Bxb5 {[%clk 0:01:16]}  Nec7 {[%clk 0:00:25]} 38. Ba4 {[%clk 0:01:04]}  Ba7 {[%clk 0:00:25]} 39. Kf2 {[%clk 0:00:46]}  Kf7 {[%clk 0:00:24]} 40. Ke2 {[%clk 0:00:47]}  Ke7 {[%clk 0:00:24]} 41. Kd3 {[%clk 0:00:47]}  Kd8 {[%clk 0:00:22]} 42. Kc2 {[%clk 0:00:45]}  Ke7 {[%clk 0:00:20]} 43. Kb3 {[%clk 0:00:46]}  Kd8 {[%clk 0:00:15]} 44. Bb2 {[%clk 0:00:46]}  Kc8 {[%clk 0:00:13]} 45. Ba3 {[%clk 0:00:44]}  Nb8 {[%clk 0:00:10]} 46. c6 {[%clk 0:00:32]}  Ne8 {[%clk 0:00:04]} 47. b5 {[%clk 0:00:30]}  Kc7 {[%clk 0:00:04]} 48. Bf8 {[%clk 0:00:28]}  Bb6 {[%clk 0:00:04]} 49. Kb4 {[%clk 0:00:27]}  Nd6 {[%clk 0:00:03]} 50. Bxg7 {[%clk 0:00:25]}  Nc4 {[%clk 0:00:03]} 51. h4 {[%clk 0:00:23]}  Ba5+ {[%clk 0:00:03]} 52. Kb3 {[%clk 0:00:22]}  Nxe3 {[%clk 0:00:02]} 53. Be5+ {[%clk 0:00:20]}  Kc8 {[%clk 0:00:00]} 54. h5 {[%clk 0:00:21]} 1-0


[Site "https://www.chess.com"]

[Event "Titled Tuesday Blitz August 22 Late 2023"]
[White "Batsuren, Dambasuren"]
[Black "Mamedov, Edgar"]
[WhiteFideId "4902920"]
[BlackFideId "13739980"]
[WhiteElo "2795"]
[BlackElo "2675"]
[Result "0-1"]
[Round "7"]
[TimeControl "180+1"]
[Date "2023.08.22"]
[WhiteClock "0:00:00"]
[BlackClock "0:00:05"]
[Board "45"]

1. d4 {[%clk 0:03:00]}  d5 {[%clk 0:02:59]} 2. c4 {[%clk 0:03:00]}  e6 {[%clk 0:02:59]} 3. Nf3 {[%clk 0:03:00]}  c6 {[%clk 0:02:59]} 4. e3 {[%clk 0:02:59]}  Nf6 {[%clk 0:02:53]} 5. b3 {[%clk 0:03:00]}  Nbd7 {[%clk 0:02:53]} 6. Bb2 {[%clk 0:03:00]}  Bd6 {[%clk 0:02:53]} 7. Bd3 {[%clk 0:02:59]}  O-O {[%clk 0:02:53]} 8. O-O {[%clk 0:03:00]}  b6 {[%clk 0:02:50]} 9. Nbd2 {[%clk 0:03:00]}  Bb7 {[%clk 0:02:50]} 10. Ne5 {[%clk 0:02:46]}  c5 {[%clk 0:02:49]} 11. cxd5 {[%clk 0:02:29]}  Bxd5 {[%clk 0:02:41]} 12. Nxd7 {[%clk 0:01:52]}  Nxd7 {[%clk 0:02:38]} 13. Qg4 {[%clk 0:01:33]}  cxd4 {[%clk 0:02:20]} 14. Bxd4 {[%clk 0:01:13]}  Be5 {[%clk 0:01:56]} 15. Rfd1 {[%clk 0:00:45]}  Bxd4 {[%clk 0:01:53]} 16. Qxd4 {[%clk 0:00:46]}  Qg5 {[%clk 0:01:20]} 17. e4 {[%clk 0:00:45]}  Bc6 {[%clk 0:01:20]} 18. Rac1 {[%clk 0:00:45]}  Ne5 {[%clk 0:01:15]} 19. h4 {[%clk 0:00:26]}  Qf4 {[%clk 0:00:42]} 20. g3 {[%clk 0:00:19]}  Qf6 {[%clk 0:00:36]} 21. Be2 {[%clk 0:00:17]}  Rad8 {[%clk 0:00:32]} 22. Qe3 {[%clk 0:00:18]}  Ba8 {[%clk 0:00:24]} 23. Rc7 {[%clk 0:00:18]}  Rd7 {[%clk 0:00:21]} 24. Rdc1 {[%clk 0:00:18]}  Rfd8 {[%clk 0:00:19]} 25. Rxd7 {[%clk 0:00:18]}  Rxd7 {[%clk 0:00:19]} 26. f4 {[%clk 0:00:18]}  Nc6 {[%clk 0:00:17]} 27. Bb5 {[%clk 0:00:17]}  Rc7 {[%clk 0:00:13]} 28. e5 {[%clk 0:00:12]}  Qd8 {[%clk 0:00:12]} 29. Ne4 {[%clk 0:00:12]}  h5 {[%clk 0:00:11]} 30. Nd6 {[%clk 0:00:11]}  Nb4 {[%clk 0:00:07]} 31. Rd1 {[%clk 0:00:03]}  Nd5 {[%clk 0:00:06]} 32. Qf3 {[%clk 0:00:01]}  Rc3 {[%clk 0:00:06]} 33. Qf2 {[%clk 0:00:01]}  Ne3 {[%clk 0:00:06]} 34. Re1 {[%clk 0:00:00]}  Ng4 {[%clk 0:00:05]} 0-1


[Site "https://www.chess.com"]

[Event "Titled Tuesday Blitz August 22 Late 2023"]
[White "Kushko, Dmitriy"]
[Black "D`Arruda, Ricardo D."]
[WhiteFideId "14162261"]
[BlackFideId "100692"]
[WhiteElo "2762"]
[BlackElo "2548"]
[Result "1-0"]
[Round "7"]
[TimeControl "180+1"]
[Date "2023.08.22"]
[WhiteClock "0:00:23"]
[BlackClock "0:00:30"]
[Board "46"]

1. Nf3 {[%clk 0:03:00]}  d5 {[%clk 0:02:59]} 2. g3 {[%clk 0:03:00]}  Nf6 {[%clk 0:02:59]} 3. Bg2 {[%clk 0:03:00]}  g6 {[%clk 0:02:59]} 4. b3 {[%clk 0:02:59]}  Bg7 {[%clk 0:02:59]} 5. Bb2 {[%clk 0:03:00]}  O-O {[%clk 0:03:00]} 6. c4 {[%clk 0:03:00]}  c6 {[%clk 0:02:57]} 7. O-O {[%clk 0:03:00]}  Na6 {[%clk 0:02:56]} 8. d3 {[%clk 0:02:57]}  Bg4 {[%clk 0:02:51]} 9. Nbd2 {[%clk 0:02:56]}  Rc8 {[%clk 0:02:48]} 10. Qc2 {[%clk 0:02:49]}  e6 {[%clk 0:02:42]} 11. e4 {[%clk 0:02:42]}  Bxf3 {[%clk 0:02:40]} 12. Nxf3 {[%clk 0:02:39]}  dxe4 {[%clk 0:02:32]} 13. dxe4 {[%clk 0:02:39]}  Nd7 {[%clk 0:02:27]} 14. e5 {[%clk 0:02:29]}  Qe7 {[%clk 0:02:24]} 15. Rad1 {[%clk 0:02:26]}  Rfd8 {[%clk 0:02:23]} 16. a3 {[%clk 0:02:26]}  b5 {[%clk 0:02:06]} 17. b4 {[%clk 0:01:42]}  Nc7 {[%clk 0:01:54]} 18. c5 {[%clk 0:01:14]}  Nd5 {[%clk 0:01:52]} 19. Rfe1 {[%clk 0:01:09]}  a5 {[%clk 0:01:47]} 20. Qb3 {[%clk 0:01:03]}  axb4 {[%clk 0:01:46]} 21. axb4 {[%clk 0:01:03]}  Ra8 {[%clk 0:01:32]} 22. Nd4 {[%clk 0:01:00]}  Rdc8 {[%clk 0:01:29]} 23. f4 {[%clk 0:00:49]}  Ra4 {[%clk 0:01:23]} 24. Bxd5 {[%clk 0:00:31]}  exd5 {[%clk 0:01:21]} 25. Ra1 {[%clk 0:00:32]}  Rxa1 {[%clk 0:01:05]} 26. Rxa1 {[%clk 0:00:33]}  g5 {[%clk 0:01:03]} 27. Nf5 {[%clk 0:00:31]}  Qe6 {[%clk 0:01:03]} 28. Nd6 {[%clk 0:00:25]}  Rf8 {[%clk 0:00:41]} 29. f5 {[%clk 0:00:25]}  Qh6 {[%clk 0:00:41]} 30. f6 {[%clk 0:00:25]}  Nxf6 {[%clk 0:00:38]} 31. Nf5 {[%clk 0:00:22]}  Qh3 {[%clk 0:00:38]} 32. Ne7+ {[%clk 0:00:22]}  Kh8 {[%clk 0:00:30]} 33. exf6 {[%clk 0:00:23]} 1-0


[Site "https://www.chess.com"]

[Event "Titled Tuesday Blitz August 22 Late 2023"]
[White "Vovk, Orest"]
[Black "Martinez Ramirez, Lennis"]
[WhiteFideId "14113490"]
[BlackFideId "3509079"]
[WhiteElo "2544"]
[BlackElo "2735"]
[Result "0-1"]
[Round "7"]
[TimeControl "180+1"]
[Date "2023.08.22"]
[WhiteClock "0:00:00"]
[BlackClock "0:01:25"]
[Board "48"]

1. g4 {[%clk 0:02:55]}  d5 {[%clk 0:02:56]} 2. h3 {[%clk 0:02:48]}  h5 {[%clk 0:02:52]} 3. g5 {[%clk 0:02:47]}  e5 {[%clk 0:02:53]} 4. Bg2 {[%clk 0:02:45]}  Nc6 {[%clk 0:02:52]} 5. c4 {[%clk 0:02:44]}  d4 {[%clk 0:02:51]} 6. Bxc6+ {[%clk 0:02:44]}  bxc6 {[%clk 0:02:51]} 7. d3 {[%clk 0:02:44]}  c5 {[%clk 0:02:51]} 8. Nf3 {[%clk 0:02:41]}  Bd6 {[%clk 0:02:51]} 9. Nh4 {[%clk 0:02:34]}  Ne7 {[%clk 0:02:44]} 10. Nd2 {[%clk 0:02:31]}  Nf5 {[%clk 0:02:38]} 11. Nxf5 {[%clk 0:02:25]}  Bxf5 {[%clk 0:02:39]} 12. Ne4 {[%clk 0:02:21]}  a5 {[%clk 0:02:36]} 13. Qa4+ {[%clk 0:02:13]}  Bd7 {[%clk 0:02:35]} 14. Qc2 {[%clk 0:02:07]}  a4 {[%clk 0:02:36]} 15. h4 {[%clk 0:02:01]}  O-O {[%clk 0:02:33]} 16. Rg1 {[%clk 0:01:57]}  Bf5 {[%clk 0:02:32]} 17. Bd2 {[%clk 0:01:15]}  Qd7 {[%clk 0:02:26]} 18. f3 {[%clk 0:00:48]}  Rfb8 {[%clk 0:02:19]} 19. Rd1 {[%clk 0:00:44]}  Rb6 {[%clk 0:02:19]} 20. Bc1 {[%clk 0:00:44]}  Bxe4 {[%clk 0:02:13]} 21. dxe4 {[%clk 0:00:39]}  Qh3 {[%clk 0:02:13]} 22. Kd2 {[%clk 0:00:30]}  Qxh4 {[%clk 0:02:13]} 23. Kd3 {[%clk 0:00:30]}  Qh3 {[%clk 0:01:45]} 24. Rh1 {[%clk 0:00:26]}  Qd7 {[%clk 0:01:45]} 25. Rxh5 {[%clk 0:00:22]}  g6 {[%clk 0:01:46]} 26. Rh4 {[%clk 0:00:17]}  Bf8 {[%clk 0:01:47]} 27. Rf1 {[%clk 0:00:12]}  Bg7 {[%clk 0:01:47]} 28. f4 {[%clk 0:00:09]}  exf4 {[%clk 0:01:48]} 29. Rhxf4 {[%clk 0:00:09]}  Re8 {[%clk 0:01:38]} 30. Rxf7 {[%clk 0:00:07]}  Qxf7 {[%clk 0:01:38]} 31. Rxf7 {[%clk 0:00:08]}  Kxf7 {[%clk 0:01:39]} 32. Qd2 {[%clk 0:00:07]}  Rbe6 {[%clk 0:01:40]} 33. Qf4+ {[%clk 0:00:07]}  Kg8 {[%clk 0:01:40]} 34. Qf3 {[%clk 0:00:05]}  Be5 {[%clk 0:01:36]} 35. Qg4 {[%clk 0:00:03]}  Bd6 {[%clk 0:01:36]} 36. Bd2 {[%clk 0:00:02]}  Kg7 {[%clk 0:01:36]} 37. Qg2 {[%clk 0:00:02]}  Rh8 {[%clk 0:01:36]} 38. Qf3 {[%clk 0:00:02]}  Rh4 {[%clk 0:01:34]} 39. Qg2 {[%clk 0:00:02]}  Re8 {[%clk 0:01:26]} 40. b3 {[%clk 0:00:02]}  Reh8 {[%clk 0:01:25]} 41. Qf3 {[%clk 0:00:00]}  Rh3 {[%clk 0:01:25]} 0-1


[Site "https://www.chess.com"]

[Event "Titled Tuesday Blitz August 22 Late 2023"]
[White "Geivondian, Arman"]
[Black "Diaz Perez, Michel Alejandro"]
[WhiteFideId "24102032"]
[BlackFideId "3517179"]
[WhiteElo "2527"]
[BlackElo "2698"]
[Result "1-0"]
[Round "7"]
[TimeControl "180+1"]
[Date "2023.08.22"]
[WhiteClock "0:02:35"]
[BlackClock "0:01:14"]
[Board "51"]

1. e4 {[%clk 0:03:00]}  c6 {[%clk 0:02:57]} 2. Nf3 {[%clk 0:03:00]}  d5 {[%clk 0:02:58]} 3. d3 {[%clk 0:03:01]}  dxe4 {[%clk 0:02:58]} 4. dxe4 {[%clk 0:03:02]}  Qxd1+ {[%clk 0:02:58]} 5. Kxd1 {[%clk 0:03:03]}  Bg4 {[%clk 0:02:57]} 6. Be2 {[%clk 0:03:03]}  Nd7 {[%clk 0:02:57]} 7. Ne1 {[%clk 0:03:03]}  Be6 {[%clk 0:02:53]} 8. c3 {[%clk 0:03:03]}  f6 {[%clk 0:02:51]} 9. Kc2 {[%clk 0:03:03]}  Bf7 {[%clk 0:02:51]} 10. Be3 {[%clk 0:03:03]}  e5 {[%clk 0:02:49]} 11. Nd3 {[%clk 0:03:03]}  Bd6 {[%clk 0:02:37]} 12. Nd2 {[%clk 0:03:03]}  Ne7 {[%clk 0:02:37]} 13. a4 {[%clk 0:03:02]}  O-O {[%clk 0:02:35]} 14. Rhd1 {[%clk 0:03:01]}  Rfd8 {[%clk 0:02:34]} 15. a5 {[%clk 0:03:00]}  Ng6 {[%clk 0:02:24]} 16. g3 {[%clk 0:02:59]}  Ngf8 {[%clk 0:02:23]} 17. h4 {[%clk 0:02:59]}  Ne6 {[%clk 0:02:23]} 18. b4 {[%clk 0:02:55]}  b5 {[%clk 0:02:15]} 19. axb6 {[%clk 0:02:53]}  axb6 {[%clk 0:02:15]} 20. Nb2 {[%clk 0:02:51]}  b5 {[%clk 0:02:13]} 21. Nb3 {[%clk 0:02:50]}  Ndf8 {[%clk 0:02:04]} 22. Rxa8 {[%clk 0:02:49]}  Rxa8 {[%clk 0:02:02]} 23. Rxd6 {[%clk 0:02:50]}  Ra3 {[%clk 0:01:32]} 24. Nc1 {[%clk 0:02:49]}  g5 {[%clk 0:01:26]} 25. hxg5 {[%clk 0:02:49]}  Nxg5 {[%clk 0:01:27]} 26. Bxg5 {[%clk 0:02:47]}  fxg5 {[%clk 0:01:28]} 27. Rxc6 {[%clk 0:02:47]}  Bg6 {[%clk 0:01:27]} 28. f3 {[%clk 0:02:47]}  g4 {[%clk 0:01:27]} 29. Ncd3 {[%clk 0:02:41]}  Nd7 {[%clk 0:01:26]} 30. Rd6 {[%clk 0:02:41]}  Nf8 {[%clk 0:01:25]} 31. Nxe5 {[%clk 0:02:40]}  gxf3 {[%clk 0:01:26]} 32. Bxf3 {[%clk 0:02:41]}  Kg7 {[%clk 0:01:24]} 33. Nxg6 {[%clk 0:02:41]}  Nxg6 {[%clk 0:01:25]} 34. Be2 {[%clk 0:02:41]}  Ne5 {[%clk 0:01:25]} 35. Bxb5 {[%clk 0:02:40]}  Ng4 {[%clk 0:01:23]} 36. Nc4 {[%clk 0:02:36]}  Ra2+ {[%clk 0:01:23]} 37. Kb3 {[%clk 0:02:36]}  Rg2 {[%clk 0:01:23]} 38. Bd7 {[%clk 0:02:34]}  Rxg3 {[%clk 0:01:19]} 39. Bxg4 {[%clk 0:02:34]}  Rxg4 {[%clk 0:01:20]} 40. b5 {[%clk 0:02:35]}  Rxe4 {[%clk 0:01:19]} 41. b6 {[%clk 0:02:34]}  Re7 {[%clk 0:01:20]} 42. Na5 {[%clk 0:02:35]}  Re5 {[%clk 0:01:18]} 43. Kb4 {[%clk 0:02:33]}  h5 {[%clk 0:01:16]} 44. b7 {[%clk 0:02:33]}  Re8 {[%clk 0:01:17]} 45. Nc6 {[%clk 0:02:32]}  h4 {[%clk 0:01:17]} 46. b8=Q {[%clk 0:02:33]}  Rxb8+ {[%clk 0:01:17]} 47. Nxb8 {[%clk 0:02:34]}  h3 {[%clk 0:01:14]} 48. Rd1 {[%clk 0:02:35]} 1-0


[Site "https://www.chess.com"]

[Event "Titled Tuesday Blitz August 22 Late 2023"]
[White "Salimova, Nurgyul"]
[Black "Sanhueza, Cristian"]
[WhiteFideId "2915138"]
[BlackFideId "116815"]
[WhiteElo "2690"]
[BlackElo "2496"]
[Result "1-0"]
[Round "7"]
[TimeControl "180+1"]
[Date "2023.08.22"]
[WhiteClock "0:01:59"]
[BlackClock "0:01:23"]
[Board "52"]

1. d4 {[%clk 0:03:00]}  Nf6 {[%clk 0:03:00]} 2. Nf3 {[%clk 0:03:01]}  g6 {[%clk 0:03:00]} 3. a4 {[%clk 0:02:59]}  Bg7 {[%clk 0:02:59]} 4. a5 {[%clk 0:03:00]}  O-O {[%clk 0:02:58]} 5. g3 {[%clk 0:03:00]}  d6 {[%clk 0:02:55]} 6. Bg2 {[%clk 0:03:00]}  c5 {[%clk 0:02:56]} 7. O-O {[%clk 0:02:59]}  cxd4 {[%clk 0:02:55]} 8. Nxd4 {[%clk 0:02:59]}  e5 {[%clk 0:02:56]} 9. Nb5 {[%clk 0:02:53]}  d5 {[%clk 0:02:54]} 10. Bg5 {[%clk 0:02:53]}  Be6 {[%clk 0:02:51]} 11. c4 {[%clk 0:02:46]}  d4 {[%clk 0:02:35]} 12. Bxb7 {[%clk 0:02:43]}  Nbd7 {[%clk 0:02:35]} 13. Nd2 {[%clk 0:02:27]}  Rb8 {[%clk 0:02:32]} 14. a6 {[%clk 0:02:27]}  Nc5 {[%clk 0:02:27]} 15. Bg2 {[%clk 0:02:19]}  h6 {[%clk 0:02:25]} 16. Bxf6 {[%clk 0:02:18]}  Bxf6 {[%clk 0:02:26]} 17. Nxa7 {[%clk 0:02:17]}  Rxb2 {[%clk 0:02:23]} 18. Nc6 {[%clk 0:02:15]}  Qc7 {[%clk 0:02:20]} 19. a7 {[%clk 0:02:15]}  Ra8 {[%clk 0:02:05]} 20. Ne7+ {[%clk 0:02:06]}  Bxe7 {[%clk 0:01:57]} 21. Bxa8 {[%clk 0:02:07]}  Rxd2 {[%clk 0:01:32]} 22. Qxd2 {[%clk 0:02:05]}  Nb3 {[%clk 0:01:32]} 23. Qa2 {[%clk 0:02:02]}  Nxa1 {[%clk 0:01:33]} 24. Bd5 {[%clk 0:01:59]}  Bxd5 {[%clk 0:01:23]} 25. cxd5 {[%clk 0:01:59]} 1-0


[Site "https://www.chess.com"]

[Event "Titled Tuesday Blitz August 22 Late 2023"]
[White "Alex_Sahakyan2006"]
[Black "Arencibia Monduy, Antonio"]
[BlackFideId "3507939"]
[WhiteElo "2687"]
[BlackElo "2473"]
[Result "0-1"]
[Round "7"]
[TimeControl "180+1"]
[Date "2023.08.22"]
[WhiteClock "0:00:23"]
[BlackClock "0:00:14"]
[Board "53"]

1. e4 {[%clk 0:03:00]}  e6 {[%clk 0:03:00]} 2. d4 {[%clk 0:03:00]}  d5 {[%clk 0:03:00]} 3. Bd3 {[%clk 0:03:01]}  dxe4 {[%clk 0:03:01]} 4. Bxe4 {[%clk 0:03:02]}  Nf6 {[%clk 0:03:01]} 5. Bf3 {[%clk 0:03:02]}  c5 {[%clk 0:03:00]} 6. Ne2 {[%clk 0:02:59]}  Nc6 {[%clk 0:02:59]} 7. Be3 {[%clk 0:02:58]}  cxd4 {[%clk 0:02:59]} 8. Nxd4 {[%clk 0:02:58]}  Ne5 {[%clk 0:02:58]} 9. Nc3 {[%clk 0:02:57]}  a6 {[%clk 0:02:50]} 10. Qe2 {[%clk 0:02:57]}  Bb4 {[%clk 0:02:39]} 11. O-O-O {[%clk 0:02:31]}  Qe7 {[%clk 0:02:39]} 12. Na4 {[%clk 0:02:17]}  Nxf3 {[%clk 0:02:06]} 13. Qxf3 {[%clk 0:02:01]}  O-O {[%clk 0:01:44]} 14. Nb6 {[%clk 0:01:58]}  Rb8 {[%clk 0:01:43]} 15. Bg5 {[%clk 0:01:48]}  e5 {[%clk 0:01:33]} 16. Nf5 {[%clk 0:00:54]}  Bxf5 {[%clk 0:01:29]} 17. Qxf5 {[%clk 0:00:55]}  Qc7 {[%clk 0:00:38]} 18. Bxf6 {[%clk 0:00:36]}  Qxb6 {[%clk 0:00:38]} 19. Bxe5 {[%clk 0:00:35]}  Rbc8 {[%clk 0:00:32]} 20. Qg4 {[%clk 0:00:34]}  Qg6 {[%clk 0:00:19]} 21. Qxg6 {[%clk 0:00:30]}  fxg6 {[%clk 0:00:19]} 22. Rd7 {[%clk 0:00:28]}  Rf7 {[%clk 0:00:19]} 23. Rhd1 {[%clk 0:00:27]}  Rcf8 {[%clk 0:00:18]} 24. f3 {[%clk 0:00:25]}  h6 {[%clk 0:00:14]} 25. Rxf7 {[%clk 0:00:24]}  Rxf7 {[%clk 0:00:15]} 26. Rd8+ {[%clk 0:00:24]}  Kh7 {[%clk 0:00:15]} 27. c3 {[%clk 0:00:23]}  Ba5 {[%clk 0:00:15]} 28. Re8 {[%clk 0:00:21]}  Rd7 {[%clk 0:00:14]} 29. Kc2 {[%clk 0:00:21]}  g5 {[%clk 0:00:15]} 30. a4 {[%clk 0:00:19]}  Kg6 {[%clk 0:00:15]} 31. Bd4 {[%clk 0:00:19]}  Kf7 {[%clk 0:00:14]} 32. Rb8 {[%clk 0:00:19]}  Bd8 {[%clk 0:00:09]} 33. h3 {[%clk 0:00:19]}  Be7 {[%clk 0:00:08]} 34. Kd3 {[%clk 0:00:18]}  Bd6 {[%clk 0:00:07]} 35. b4 {[%clk 0:00:17]}  Bxb8 {[%clk 0:00:08]} 36. a5 {[%clk 0:00:16]}  Be5 {[%clk 0:00:06]} 37. Ke4 {[%clk 0:00:16]}  Bxd4 {[%clk 0:00:07]} 38. cxd4 {[%clk 0:00:16]}  Ke6 {[%clk 0:00:08]} 39. g3 {[%clk 0:00:15]}  Rd5 {[%clk 0:00:07]} 40. h4 {[%clk 0:00:14]}  gxh4 {[%clk 0:00:07]} 41. gxh4 {[%clk 0:00:14]}  Rb5 {[%clk 0:00:08]} 42. f4 {[%clk 0:00:14]}  g6 {[%clk 0:00:08]} 43. h5 {[%clk 0:00:14]}  gxh5 {[%clk 0:00:08]} 44. d5+ {[%clk 0:00:14]}  Rxd5 {[%clk 0:00:07]} 45. f5+ {[%clk 0:00:15]}  Rxf5 {[%clk 0:00:08]} 46. b5 {[%clk 0:00:16]}  Rxb5 {[%clk 0:00:09]} 47. Kf4 {[%clk 0:00:16]}  Rxa5 {[%clk 0:00:09]} 48. Kg3 {[%clk 0:00:16]}  Rb5 {[%clk 0:00:10]} 49. Kh4 {[%clk 0:00:17]}  a5 {[%clk 0:00:11]} 50. Kg3 {[%clk 0:00:18]}  a4 {[%clk 0:00:11]} 51. Kh4 {[%clk 0:00:19]}  a3 {[%clk 0:00:12]} 52. Kg3 {[%clk 0:00:20]}  a2 {[%clk 0:00:13]} 53. Kh4 {[%clk 0:00:21]}  a1=Q {[%clk 0:00:13]} 54. Kg3 {[%clk 0:00:22]}  Qd4 {[%clk 0:00:14]} 55. Kh2 {[%clk 0:00:22]}  Rb2+ {[%clk 0:00:14]} 56. Kh1 {[%clk 0:00:23]}  Qd1# {[%clk 0:00:14]} 0-1


[Site "https://www.chess.com"]